[Event "39th Muensterland Open 2022"]
[Site "Muenster"]
[Date "2022.10.04"]
[Round "5.2"]
[White "Scholz, Christian"]
[Black "Pfreundt, Jakob"]
[Result "0-1"]
[ECO "E36"]
[WhiteElo "2332"]
[BlackElo "2394"]
[Annotator "TA"]
[PlyCount "118"]
[EventDate "2022.10.01"]
[EventType "swiss"]
[EventCountry "GER"]
[SourceTitle "playchess.com"]
[Source "ChessBase"]
[SourceQuality "1"]
[TimeControl "40/5400+30:1800+30"]

{[%evp 12,118,24,10,9,0,9,9,13,1,5,0,6,-6,36,-164,-172,-204,-200,-198,-192,-197,-191,-212,-59,-53,-43,-100,-64,-79,-67,-70,-68,-80,-66,-64,-79,-56,-54,-138,-147,-162,-149,-138,-143,-106,-65,-226,-217,-220,-229,-226,-231,-239,-210,-218,-227,-229,-200,-176,-183,-306,-256,-239,-236,-465,-424,-586,-573,-575,-547,-603,-601,-611,-579,-625,-529,-761,-760,-754,-688,-1450,-1459,-4906,-2597,-29966,-29966,-29973,-29974,-29975,-29977,-29979,-29980,-29980,-29981,-29981,-29982,-29982,-29983,-29983,-29984,-29984,-29985,-29985,-29986,-29986,-29987,-29988,-29989]} 1. d4 {[%emt 0:00:06]} Nf6 {[%emt 0:00:35]} 2. c4 {[%emt 0:00:11]} e6 {[%emt 0:00:21]} 3. Nc3 {[%emt 0:00:15]} Bb4 {[%emt 0:01:07]} 4. Qc2 {[%emt 0:00:10]} d5 {[%emt 0:00:27]} 5. a3 {[%emt 0:00:09]} Bxc3+ {[%emt 0:00:08]} 6. Qxc3 {[%emt 0:00:05]} O-O {[%emt 0:00:46] is the new trend.} 7. Nf3 {[%emt 0:00:09]} b6 {[%emt 0:00:48] E36: Nimzo-Indian: Classical: 4...d5 5 a3.} 8. Bg5 {[%emt 0:00:42]} Nbd7 {[%emt 0:01:00]} 9. cxd5 {[%emt 0:03:00]} exd5 {[%emt 0:00:11] The position is equal.} 10. e3 {[%emt 0:00:10]} c5 {[%emt 0:01:09]} 11. Bb5 {[%emt 0:03:59]} h6 {[%emt 0:02:00]} 12. Bh4 {[%emt 0:30:12]} g5 {[%emt 0:00:12] [#]} 13. Bc6 $146 {[%emt 0:04:41]} (13. Bg3 $14 {keeps the upper hand.}) ({Predecessor:} 13. Bg3 Ne4 14. Qc2 Ndf6 15. Ne5 Bf5 16. Qd1 Nxg3 17. hxg3 Kg7 18. f3 Ng8 19. Bd3 {½-½ (30) Matei,C (2483)-Novak,J (2513) ICCF email 2011}) 13... Ba6 $1 $19 {[%emt 0:17:27]} 14. Bxa8 {[%emt 0:00:21] Strongly threatening Bc6.} Qxa8 {[%emt 0:00:25]} 15. Bg3 {[%emt 0:01:53]} Ne4 {[%emt 0:06:53]} 16. Qc2 {[%emt 0:03:43]} cxd4 $1 {[%emt 0:05:39]} 17. exd4 {[%emt 0:21:42]} (17. Nxd4 Rc8 18. Qb1 Ndc5) 17... Qe8 $2 {[%emt 0:41:12]} (17... Rc8 $19 18. Qa4 Nec5 19. dxc5 Nxc5 20. Qxa6 Nxa6) 18. O-O-O $15 {[%emt 0:02:22]} Qe6 $1 {[%emt 0:01:56][%mdl 1024] Black has compensation.} 19. Kb1 {[%emt 0:07:17] [#]} (19. Qa4 $15 Be2 20. Kb1 (20. Rde1 $2 Bd3 $19) 20... Bxd1 21. Rxd1) 19... Qf5 $1 $17 {[%emt 0:00:25]} (19... Rc8 20. Qa4 Bc4 21. Rhe1 $16 (21. Qxa7 Qc6 $15)) 20. Bc7 {[%emt 0:06:06]} Rc8 {[%emt 0:00:09][%cal Bf8c8,Bc8c7,Bc7c4,Bc4a4,Ba4a5][%mdl 32] And now ...Bc4 would win.} 21. Ka1 {[%emt 0:08:42]} Bc4 {[%emt 0:00:15]} 22. b3 {[%emt 0:01:37]} (22. Be5 f6 23. Bc7 (23. b3 Ba6 $17) 23... Rxc7 $17) 22... Rxc7 {[%emt 0:00:12]} 23. bxc4 {[%emt 0:02:16]} Rxc4 {[%emt 0:00:07]} 24. Qb2 {[%emt 0:00:16]} Nd6 {[%emt 0:08:42]} 25. Rc1 {[%emt 0:01:02] [#]} ({Better is} 25. Nd2 $15 Ra4 26. h4) 25... Ra4 $1 {[%emt 0:00:23] Hoping for ...Nc4. Black is more active.} 26. Rc3 {[%emt 0:00:50]} Nc4 {[%emt 0:00:50]} 27. Qb5 {[%emt 0:00:41]} Ra5 {[%emt 0:00:07]} 28. Qb4 {[%emt 0:00:26]} Nf6 {[%emt 0:02:59] Pair of Knights!} 29. Rhc1 $2 {[%emt 0:00:30]} ({White must play} 29. Ne5 $1 $15) 29... Ne4 $19 {[%emt 0:00:29][%csl LRc3,LRf2]} 30. Rxc4 {[%emt 0:00:10]} dxc4 {[%emt 0:00:05]} 31. Rxc4 {[%emt 0:00:03]} Rb5 {[%emt 0:01:34]} ({Stronger than} 31... Nxf2 32. Qb3) ({Not} 31... g4 32. Ne5 Qxf2 33. Rc1 $17) 32. Rc5 {[%emt 0:01:23]} Qxc5 {[%emt 0:05:34]} ({Inferior is} 32... bxc5 33. Qxb5 Qf4 34. Qe8+ Kh7 35. Ka2 $17) (32... Rxb4 33. Rxf5 Rb3 34. Ka2 $17) 33. dxc5 {[%emt 0:00:01]} Rxb4 {[%emt 0:00:06]} 34. axb4 {[%emt 0:00:05]} bxc5 {[%emt 0:00:04]} 35. bxc5 {[%emt 0:00:07]} Nxc5 {[%emt 0:00:05][%mdl 4096] Endgame KN-KN} 36. Nd4 {[%emt 0:00:44]} (36. Ne1 $142) 36... Kg7 {[%emt 0:00:42]} 37. f3 {[%emt 0:00:40]} Kf6 {[%emt 0:00:50]} 38. g3 $2 {[%emt 0:00:24]} (38. Nc2) 38... Nd3 {[%emt 0:02:09]} 39. Kb1 {[%emt 0:00:42]} Ne1 {[%emt 0:00:34]} 40. Kb2 {[%emt 0:01:10]} Ke5 {[%emt 0:00:35]} 41. Kc3 {[%emt 0:30:31]} h5 {[%emt 0:03:36]} 42. Kc4 {[%emt 0:00:00]} a6 {[%emt 0:12:23]} 43. Nc6+ {[%emt 0:00:00]} Kf6 {[%emt 0:00:57]} 44. Nd4 {[%emt 0:00:00]} g4 {[%emt 0:00:17]} 45. fxg4 {[%emt 0:00:00]} hxg4 {[%emt 0:00:06] White must now prevent ...Nf3.} 46. Kb4 {[%emt 0:00:00]} Nf3 {[%emt 0:02:37]} 47. Ne2 {[%emt 0:00:00]} Nxh2 {[%emt 0:00:34]} 48. Ka5 {[%emt 0:00:00]} Ke5 {[%emt 0:00:54] Black mates.} 49. Kxa6 {[%emt 0:00:00]} Ke4 {[%emt 0:01:20]} 50. Kb5 {[%emt 0:00:00]} Kf3 {[%emt 0:01:12]} 51. Nd4+ {[%emt 0:00:00]} Kxg3 {[%emt 0:00:07]} 52. Kc4 {[%emt 0:00:00]} Kf2 {[%emt 0:01:07]} 53. Kd3 {[%emt 0:00:00]} Nf3 {[%emt 0:01:03]} 54. Nf5 {[%emt 0:00:00]} g3 {[%emt 0:00:08]} 55. Ne3 {[%emt 0:00:00]} g2 {[%emt 0:00:53]} 56. Nxg2 {[%emt 0:00:00]} Kxg2 {[%emt 0:00:06]} 57. Ke4 {[%emt 0:00:00]} Nh4 {[%emt 0:00:06]} 58. Kf4 {[%emt 0:00:00]} f5 {[%emt 0:00:13]} 59. Kg5 {[%emt 0:00:00]} Kg3 {[%emt 0:00:05] Weighted Error Value: White=0.54/Black=0.09 (flawless)} 0-1

[Event "39th Muensterland Open 2022"]
[Site "Muenster"]
[Date "2022.10.04"]
[Round "5.3"]
[White "Bungarten, Jona"]
[Black "Knudsen, Simon"]
[Result "1-0"]
[ECO "B22"]
[WhiteElo "2010"]
[BlackElo "2250"]
[Annotator "TA"]
[PlyCount "91"]
[EventDate "2022.10.01"]
[EventType "swiss"]
[EventCountry "GER"]
[SourceTitle "playchess.com"]
[Source "ChessBase"]
[SourceQuality "1"]
[TimeControl "40/5400+30:1800+30"]

{[%evp 22,91,25,20,20,3,20,-4,-4,-6,-8,-8,14,15,19,2,9,0,0,0,-9,-19,-7,-71,-64,-54,-59,-100,-52,-91,-72,-181,-158,-195,-175,-394,-427,-319,0,0,0,0,0,0,0,0,0,0,0,0,0,0,0,0,29985,29986,29986,29987,29989,29980,29977,0,29989,29990,29991,29992,29992,29991,29992,29988,29996,29997]} 1. e4 {[%emt 0:05:47]} c5 {[%emt 0:00:16]} 2. Nf3 {[%emt 0:00:44]} Nc6 {[%emt 0:00:35]} 3. c3 {[%emt 0:01:32]} d5 {[%emt 1:31:09]} 4. exd5 {[%emt 0:00:17]} Qxd5 {[%emt 0:00:08]} 5. d4 {[%emt 0:00:47]} Nf6 {[%emt 0:05:18]} 6. Be2 {[%emt 0:02:51]} e6 {[%emt 0:02:09]} 7. O-O {[%emt 0:00:35]} Be7 {[%emt 0:02:00]} 8. c4 {[%emt 0:02:21]} Qd8 {[%emt 0:06:05]} 9. Be3 {[%emt 0:03:38]} cxd4 {[%emt 0:08:25]} 10. Nxd4 {[%emt 0:01:06]} Nxd4 {[%emt 0:04:52]} 11. Bxd4 {[%emt 0:00:39]} O-O {[%emt 0:01:21]} 12. Nc3 {[%emt 0:05:15]} Bd7 {[%emt 0:08:30] B22: Sicilian: 2 c3.} 13. Bf3 {[%emt 0:05:21] [#]} Qc8 $146 {[%emt 0:01:33]} ({Predecessor:} 13... Qc7 14. Qe2 Bc6 15. b3 a6 16. Rad1 Bxf3 17. Qxf3 Rfd8 18. Na4 Nd7 19. c5 a5 20. Rc1 {½-½ (74) Ivekovic,Z (2161)-Ben,T (1966) Sibenik 2007}) 14. Qb3 {[%emt 0:04:33]} Bc6 {[%emt 0:00:36] The position is equal.} 15. Bxc6 {[%emt 0:00:46]} Qxc6 {[%emt 0:00:07]} 16. Qb5 {[%emt 0:00:26]} Rac8 {[%emt 0:04:33][%cal Ba8c8,Bc8c7,Bc7a7,Ba7a5][%mdl 32]} 17. Bxa7 {[%emt 0:02:05]} Qxc4 {[%emt 0:00:38]} 18. Qxb7 {[%emt 0:03:18]} Bd6 {[%emt 0:15:19]} 19. Rfd1 {[%emt 0:08:07]} Rc7 {[%emt 0:01:56]} ({Don't do} 19... Qf4 20. g3 Qb4 21. Qxb4 Bxb4 22. a4 $16) 20. Qf3 {[%emt 0:08:56]} Bxh2+ {[%emt 0:01:20]} 21. Kxh2 {[%emt 0:00:04]} Rxa7 {[%emt 0:00:08]} 22. g3 {[%emt 0:42:22]} (22. Kg1 $11) 22... Ra5 $17 {[%emt 0:03:09] ...Rf5 is the strong threat.} 23. Kg1 {[%emt 0:07:05]} h5 {[%emt 0:07:08][%cal Bh7h5,Bh5h4][%mdl 32]} 24. Qd3 {[%emt 0:02:15]} Qg4 {[%emt 0:01:38]} ({Black should play} 24... Qc6 $17) 25. Qd4 {[%emt 0:00:28]} Qg6 {[%emt 0:02:13][%cal Oh5h4]} 26. Rd3 {[%emt 0:06:26]} (26. Rd2 $17) 26... h4 $19 {[%emt 0:04:03]} 27. Rad1 {[%emt 0:01:46]} Rh5 {[%emt 0:03:46]} 28. b4 $2 {[%emt 0:04:08]} (28. Ne2 hxg3 29. Nxg3) 28... e5 {[%emt 0:02:33]} 29. Qb6 {[%emt 0:02:28]} e4 $2 {[%emt 0:09:48]} (29... hxg3 $19 30. Rxg3 Qh6) 30. Rd8 $11 {[%emt 0:00:50]} hxg3 {[%emt 0:05:30]} 31. Rxf8+ {[%emt 0:00:23]} Kh7 $1 {[%emt 0:00:19] ( -> ...gxf2+)} 32. Qb8 $1 {[%emt 0:06:39][%csl Gb8][%cal Rf8h8]} Rh1+ {[%emt 0:02:07]} 33. Kg2 {[%emt 0:00:39][%csl Gb8][%cal Rf8h8]} Rh2+ {[%emt 0:00:09]} 34. Kg1 {[%emt 0:00:18][%csl Gb8][%cal Rf8h8]} gxf2+ {[%emt 0:02:40]} 35. Kxh2 {[%emt 0:00:10][%csl Gb8][%cal Rf8h8,Bg1h2,Bh2g2,Bg2f1][%mdl 32]} Qh5+ {[%emt 0:01:02]} 36. Kg2 {[%emt 0:01:15] Intending Rh8+ and mate.} Qf3+ {[%emt 0:00:10]} 37. Kf1 {[%emt 0:12:00] Threatens to win with Rh8+.} Ng4 $2 {[%emt 0:00:46][%mdl 8192] [#]} (37... Qh3+ $11 38. Ke2 (38. Kxf2 Ng4+ 39. Ke1 Qxc3+ 40. Rd2 Qc1+ 41. Ke2 Qc4+ 42. Ke1 Qc1+ 43. Ke2 Qc4+ 44. Ke1 Qc1+ $11) 38... Qf3+ 39. Kf1 Qh3+ 40. Ke2 (40. Kxf2 Ng4+ 41. Ke1 Qxc3+ 42. Rd2 Qc1+ 43. Ke2 Qc4+ 44. Ke1 Qc1+ 45. Ke2 Qc4+ 46. Ke1 Qc1+ $11) 40... Qf3+ 41. Kf1) 38. Rh8+ {[%emt 0:00:38]} Kg6 {[%emt 0:00:01]} 39. Rd6+ {[%emt 0:02:14]} Kg5 {[%emt 0:01:28]} 40. Rd5+ {[%emt 0:10:28]} Kg6 {[%emt 0:00:28]} 41. Rd6+ {[%emt 0:33:02]} Kg5 $1 {[%emt 0:31:04][%cal Rg4e3]} 42. Qd8+ {[%emt 0:00:17] White mates.} Nf6 {[%emt 0:00:00] [#]} 43. Rxf6 $1 {[%emt 0:00:00]} gxf6 {[%emt 0:00:00]} 44. Qd5+ {[%emt 0:00:00]} f5 {[%emt 0:00:00]} 45. Nxe4+ {[%emt 0:00:00]} Kf4 {[%emt 0:00:00]} 46. Qd2+ {[%emt 0:07:07] What a bad dream for Black.  Weighted Error Value: White=0.46/Black=0.28 (precise)} 1-0

[Event "39th Muensterland Open 2022"]
[Site "Muenster"]
[Date "2022.10.04"]
[Round "5.4"]
[White "Jansen, Dirk Norbert"]
[Black "Panjer, Sidney"]
[Result "1/2-1/2"]
[ECO "D36"]
[WhiteElo "2125"]
[BlackElo "2197"]
[Annotator "TA"]
[PlyCount "59"]
[EventDate "2022.10.01"]
[EventType "swiss"]
[EventCountry "GER"]
[SourceTitle "playchess.com"]
[Source "ChessBase"]
[SourceQuality "1"]
[TimeControl "40/5400+30:1800+30"]

{[%evp 19,59,28,21,12,16,14,36,18,18,19,30,35,17,0,7,0,22,0,0,0,8,15,46,47,68,47,47,34,35,48,47,36,44,8,11,3,0,0,31,32,826,37]} 1. c4 {[%emt 0:00:09]} e6 {[%emt 0:03:30]} 2. Nc3 {[%emt 0:00:29]} d5 {[%emt 0:03:13]} 3. d4 {[%emt 0:00:11]} Nf6 {[%emt 0:00:13]} 4. cxd5 {[%emt 0:00:44]} exd5 {[%emt 0:00:07]} 5. Bg5 {[%emt 0:00:08]} c6 {[%emt 0:00:25]} 6. e3 {[%emt 0:00:33]} Be7 {[%emt 0:00:13]} 7. Bd3 {[%emt 0:01:00]} Nbd7 {[%emt 0:00:05]} 8. Qc2 {[%emt 0:00:59]} Nh5 {[%emt 0:00:31]} 9. Bxe7 {[%emt 0:00:12]} Qxe7 {[%emt 0:00:03]} 10. O-O-O {[%emt 1:31:05]} Nb6 {[%emt 0:01:59]} 11. Kb1 {[%emt 0:01:56] D36: Queen's Gambit Declined: Exchange Variation: Main line (5 Bg5 c6 6 Qc2).} Be6 {[%emt 0:00:36]} 12. Nf3 {[%emt 0:04:36]} ({Not} 12. Bxh7 $2 g6 13. Bxg6 fxg6 14. Qxg6+ Bf7 $19) 12... O-O-O {[%emt 0:01:14]} 13. Rc1 {[%emt 0:01:26] White is slightly better.} (13. Bxh7 $2 g6 14. Bxg6 fxg6 $17) 13... Kb8 {[%emt 0:01:22]} 14. Na4 {[%emt 0:02:39] [#]} ({Wrong is} 14. Bxh7 $2 g6 15. Bxg6 fxg6 $19) 14... g6 $146 {[%emt 0:00:52]} ({Predecessor:} 14... Nf6 15. Nc5 Bc8 16. Qb3 Nfd7 17. Rc3 Ka8 18. Rhc1 g5 19. Qc2 g4 20. Nd2 Nxc5 21. Rxc5 {1-0 (68) Martirosyan,H (2621)-Bartel,M (2616) Warsaw 2021}) 15. Nc5 {[%emt 0:11:05]} Ng7 {[%emt 0:02:54]} 16. Nxe6 {[%emt 0:04:01]} Nxe6 {[%emt 0:03:26]} 17. Qb3 {[%emt 0:04:57]} Ng5 {[%emt 0:17:45]} 18. Nxg5 {[%emt 0:09:21]} Qxg5 {[%emt 1:01:02]} 19. g3 {[%emt 0:00:45]} Rhe8 {[%emt 0:03:00]} 20. a4 {[%emt 0:01:59][%cal Ba2a4,Ba4a5,Ba5a6][%mdl 32]} Re6 {[%emt 0:24:38]} 21. Rc2 {[%emt 0:08:44]} Rc8 {[%emt 0:06:55]} 22. Rhc1 {[%emt 0:02:30]} Rc7 {[%emt 0:14:32]} 23. a5 {[%emt 0:04:18]} Nc8 {[%emt 0:00:59]} 24. a6 $36 {[%emt 0:02:36][%cal Oc2c6][%mdl 2048] Hoping for Rxc6! White is pushing.} b6 {[%emt 0:01:41]} 25. Bb5 {[%emt 0:05:57][%cal Rb5c6]} Ne7 {[%emt 0:12:00]} 26. Qa4 {[%emt 0:03:58]} Qf6 {[%emt 0:09:33]} (26... cxb5 27. Rxc7 Qf5+ 28. Qc2 Qxc2+ 29. R1xc2 $18) 27. Bd3 {[%emt 0:00:11]} Rd6 {[%emt 0:00:32]} 28. b4 {[%emt 0:07:23]} Qe6 {[%emt 0:00:34]} 29. b5 {[%emt 0:01:09]} cxb5 $2 {[%emt 0:00:29][%mdl 8192] [#]} (29... Qc8 $14) 30. Bxb5 $2 {[%emt 0:03:42] Weighted Error Value: White=0.09 (flawless) /Black=0.10 (very precise)} (30. Rxc7 $1 $18 bxa4 31. Rb7+ Ka8 {[#]} 32. Rxe7 $1 {[%mdl 512]}) 1/2-1/2

[Event "39th Muensterland Open 2022"]
[Site "Muenster"]
[Date "2022.10.04"]
[Round "5.5"]
[White "Dordevic, Tom"]
[Black "Wichtrup, Jan-Louis"]
[Result "1-0"]
[ECO "A48"]
[WhiteElo "1767"]
[BlackElo "2172"]
[Annotator "TA"]
[PlyCount "51"]
[EventDate "2022.10.01"]
[EventType "swiss"]
[EventCountry "GER"]
[SourceTitle "playchess.com"]
[Source "ChessBase"]
[SourceQuality "1"]
[TimeControl "40/5400+30:1800+30"]

{[%evp 19,51,21,22,0,12,6,26,0,0,0,0,-14,0,0,0,-19,-9,-29,56,67,64,62,67,65,41,12,13,-22,0,0,215,152,503,497]} 1. d4 {[%emt 0:00:02]} Nf6 {[%emt 0:00:30]} 2. Nf3 {[%emt 0:00:17]} b6 {[%emt 0:02:54]} 3. Bf4 {[%emt 0:00:19]} Bb7 {[%emt 0:00:26]} 4. e3 {[%emt 0:00:07]} g6 {[%emt 0:00:35]} 5. Be2 {[%emt 0:00:27]} Bg7 {[%emt 0:00:08]} 6. Nbd2 {[%emt 0:00:13]} c5 {[%emt 0:04:00]} 7. c3 {[%emt 0:00:14]} d6 {[%emt 0:01:01]} 8. h3 {[%emt 0:00:41]} O-O {[%emt 0:00:13]} 9. O-O {[%emt 0:00:06]} Nbd7 {[%emt 0:01:45]} 10. a4 {[%emt 0:00:42]} a6 {[%emt 0:01:55]} 11. Rb1 {[%emt 0:02:07] A48: 1 d4 Nf6 2 Nf3 g6: Torre, London and Colle Systems.} Rc8 {[%emt 0:04:46] [#]} 12. Qb3 $146 {[%emt 0:03:27]} ({Predecessor:} 12. Bh2 Ne4 13. Nxe4 Bxe4 14. Bd3 Bxd3 15. Qxd3 c4 16. Qe2 Qc7 17. Rfc1 Qc6 18. Qc2 Rc7 {½-½ (28) Flores,C (1527)-Viertler,S (1572) Sao Paulo 2019}) 12... Rc7 {[%emt 0:06:49]} 13. Bh2 {[%emt 0:06:30] White has an edge.} Qa8 {[%emt 0:09:13]} 14. c4 {[%emt 0:06:41]} cxd4 {[%emt 0:02:06]} 15. exd4 {[%emt 0:00:44]} Ne4 {[%emt 0:03:17]} 16. Nxe4 {[%emt 0:05:22]} Bxe4 {[%emt 0:00:13]} 17. Ra1 {[%emt 1:11:01]} Rfc8 {[%emt 0:06:00]} 18. a5 {[%emt 0:00:00]} Rb7 {[%emt 0:18:51]} (18... bxa5 $11 19. Qe3 e5) 19. Ng5 {[%emt 0:00:00]} bxa5 {[%emt 0:02:39]} 20. Qe3 {[%emt 0:00:00] White is more active.} d5 {[%emt 0:04:08]} (20... Bh6 $2 21. Qxe4 Bxg5 22. Bf3 $18) 21. Nxe4 {[%emt 0:00:00]} dxe4 {[%emt 0:00:18]} 22. Qxe4 {[%emt 0:00:00] [#] Black must now prevent Bf3.} (22. b3 $5 {[%cal Ra1a5]}) 22... Rxb2 {[%emt 0:03:19]} 23. Qe3 {[%emt 0:00:00]} Nb6 {[%emt 0:08:07]} 24. Rfb1 {[%emt 0:00:00]} Rxb1+ {[%emt 0:00:13]} ({Don't play} 24... Nxc4 25. Bxc4 Rxc4 26. Rxb2 $16) (24... Rb4 $11 {and Black is okay.}) 25. Rxb1 $18 {[%emt 0:00:00]} Qa7 {[%emt 0:02:29] [#]} (25... Nxc4 $2 26. Bxc4 Qa7 27. Qb3 Bxd4 28. Bxf7+ Kg7 29. Bc4) (25... Rd8 $16) 26. d5 {[%emt 0:00:00] Weighted Error Value: White=0.11 (very precise) /Black=0.53} 1-0

[Event "39th Muensterland Open 2022"]
[Site "Muenster"]
[Date "2022.10.04"]
[Round "5.6"]
[White "Weidemann, Jakob"]
[Black "Holtel, Jasper"]
[Result "1/2-1/2"]
[ECO "B51"]
[WhiteElo "2084"]
[BlackElo "2413"]
[Annotator "TA"]
[PlyCount "81"]
[EventDate "2022.10.01"]
[EventType "swiss"]
[EventCountry "GER"]
[SourceTitle "playchess.com"]
[Source "ChessBase"]
[SourceQuality "1"]
[TimeControl "40/5400+30:1800+30"]

{[%evp 9,81,21,22,12,24,12,32,0,0,0,0,0,-6,-15,29,64,32,15,10,3,10,0,0,0,0,0,13,13,13,8,7,12,24,24,26,23,30,30,30,31,31,40,24,5,20,20,26,20,20,20,20,20,20,20,20,20,28,28,29,0,0,0,0,0,0,0,0,-8,7,0,0,-8,6,0]} 1. e4 {[%emt 0:00:05]} c5 {[%emt 0:01:18]} 2. Nf3 {[%emt 0:00:10]} d6 {[%emt 0:00:38]} 3. Bb5+ {[%emt 0:00:13]} Nd7 {[%emt 0:00:39]} 4. O-O {[%emt 0:00:22]} a6 {[%emt 0:00:08]} 5. Bd3 {[%emt 0:00:08]} Ngf6 {[%emt 0:00:31]} 6. c3 {[%emt 0:00:24] B51: Sicilian: Moscow Variation (3 Bb5+) without 3...Bd7.} b5 {[%emt 0:03:22]} 7. a4 {[%emt 0:00:57]} Bb7 {[%emt 0:01:52]} 8. axb5 {[%emt 0:00:21] White is slightly better.} (8. Re1 {is more complex.} c4 9. Bc2 e6 10. d4) 8... axb5 {[%emt 0:00:30]} 9. Rxa8 {[%emt 0:00:12]} Qxa8 {[%emt 0:03:57]} 10. Bxb5 {[%emt 0:00:19] Black must now prevent d4.} Bxe4 {[%emt 0:01:24]} 11. d4 {[%emt 0:00:08][%cal Od4c5] [#] Threatens to win with dxc5!} Bc6 {[%emt 0:20:48] [#]} (11... Bxb1 {seems wilder.} 12. dxc5 Be4 13. Re1 Bxf3 14. gxf3 Kd8) 12. Bxc6 $146 {[%emt 0:10:38]} ({Predecessor:} 12. Na3 e6 13. dxc5 dxc5 14. Bg5 Be7 15. Bxf6 Nxf6 16. Bxc6+ Qxc6 17. Ne5 Qa8 18. Qf3 {0-1 (45) Csonka,B (2474)-Vokhidov,S (2536) Chess.com INT 2022}) 12... Qxc6 {[%emt 0:02:22]} 13. dxc5 {[%emt 0:00:09]} dxc5 {[%emt 0:02:19]} 14. Na3 {[%emt 0:16:10]} e6 {[%emt 0:01:43]} 15. Nc4 {[%emt 0:00:37]} Be7 {[%emt 0:03:16]} 16. Nce5 {[%emt 0:03:12]} Nxe5 {[%emt 0:53:43]} 17. Nxe5 {[%emt 0:00:11]} Qa8 {[%emt 0:00:00]} 18. Bg5 {[%emt 0:10:26] [#] And now Bxf6 would win.} O-O {[%emt 0:00:00]} 19. Bxf6 {[%emt 0:09:10]} gxf6 {[%emt 0:00:00]} 20. Qd7 {[%emt 0:10:57]} Re8 {[%emt 0:00:00]} 21. Nc6 {[%emt 0:08:00][%cal Be5c6,Bc6d8,Bd8b7,Bb7a5][%mdl 32]} Bf8 {[%emt 0:00:00]} 22. Rd1 {[%emt 0:02:03]} Qc8 {[%emt 0:00:00]} 23. Nd8 {[%emt 0:02:40]} Qxd7 {[%emt 0:00:00]} 24. Rxd7 {[%emt 0:00:10]} Re7 {[%emt 0:00:00]} 25. Rxe7 {[%emt 0:00:24]} Bxe7 $14 {[%emt 0:00:00][%mdl 4096] Endgame KB-KN} 26. Nb7 {[%emt 0:04:04]} Kf8 {[%emt 0:00:00]} 27. Kf1 {[%emt 0:00:46]} Ke8 {[%emt 0:00:00]} 28. Ke2 {[%emt 0:00:32]} Kd7 {[%emt 0:00:00]} 29. Kd3 {[%emt 0:00:42]} Kc6 {[%emt 0:00:00]} 30. Na5+ {[%emt 0:00:10]} Kd5 {[%emt 0:00:00]} 31. Nc4 {[%emt 0:00:45]} f5 {[%emt 0:00:00]} 32. Ne3+ {[%emt 0:03:06]} Kc6 {[%emt 0:01:20]} 33. Kc4 {[%emt 0:01:26]} Bh4 {[%emt 0:00:30]} 34. f3 {[%emt 0:06:44]} (34. g3 $5 {[%cal Rg3h4]} Be7 35. Ng2 $11) 34... Bf2 {[%emt 0:00:25] The position is equal.} 35. Nf1 {[%emt 0:05:39]} Bg1 {[%emt 0:01:11]} 36. h3 {[%emt 0:02:24]} Bf2 {[%emt 0:00:45]} 37. b3 {[%emt 0:00:39]} Be1 {[%emt 0:01:07]} 38. Kd3 {[%emt 0:02:13]} Bf2 {[%emt 0:01:37]} 39. Kc4 {[%emt 0:00:33]} Be1 {[%emt 0:00:08]} 40. Kd3 {[%emt 0:00:06]} Bf2 {[%emt 0:00:05]} 41. Kc4 {[%emt 0:31:21] Weighted Error Value: White=0.05 (flawless) /Black=0.05 (flawless)} 1/2-1/2